fUSD/lending_fUSD_20260513
["ID","MTS","AMOUNT","RATE_DAILY","PERIOD"]
[422177583,1778651441000,-151.0,0.00014662,2]
[422177584,1778651441000,-151.0,0.00014662,2]
[422177585,1778651441000,-441.65934805,0.00014677,2]
[422177587,1778651441000,-22500.0,0.000147,5]
[422177588,1778651441000,-151.0,0.00014709,2]
[422177589,1778651441000,-500.0,0.00014712,2]
[422177586,1778651441000,-1002.63,0.000147,2]
[422177590,1778651441000,-500.0,0.00014712,2]
[422177591,1778651441000,-500.0,0.00014712,2]
[422177563,1778651441000,-500.0,0.00014661,2]
[422177562,1778651441000,-500.0,0.00014661,2]
[422177532,1778651441000,-355.37055737,0.00014612,2]
[422177557,1778651441000,-500.0,0.0001465,2]
[422177561,1778651441000,-500.0,0.00014661,2]
[422177533,1778651441000,-500.0,0.00014612,2]
[422177535,1778651441000,-500.0,0.00014612,2]
[422177536,1778651441000,-500.0,0.00014612,2]
[422177537,1778651441000,-500.0,0.00014612,2]
[422177538,1778651441000,-500.0,0.00014612,2]
[422177534,1778651441000,-500.0,0.00014612,2]
[422177540,1778651441000,-500.0,0.00014612,2]
[422177541,1778651441000,-500.0,0.00014612,2]
[422177539,1778651441000,-500.0,0.00014612,2]
[422177542,1778651441000,-500.0,0.00014612,2]
[422177544,1778651441000,-1460319.96,0.00014612,2]
[422177545,1778651441000,-190.0,0.0001463,2]
[422177543,1778651441000,-500.0,0.00014612,2]
[422177546,1778651441000,-12464.0,0.0001463,2]
[422177547,1778651441000,-500.0,0.0001465,2]
[422177560,1778651441000,-500.0,0.00014661,2]
[422177559,1778651441000,-18295.0854671,0.00014651,2]
[422177554,1778651441000,-500.0,0.0001465,2]
[422177556,1778651441000,-500.0,0.0001465,2]
[422177553,1778651441000,-500.0,0.0001465,2]
[422177555,1778651441000,-500.0,0.0001465,2]
[422177558,1778651441000,-535343.59263532,0.00014651,2]
[422177551,1778651441000,-1161.3,0.0001465,2]
[422177548,1778651441000,-500.0,0.0001465,2]
[422177549,1778651441000,-500.0,0.0001465,2]
[422177550,1778651441000,-500.0,0.0001465,2]
[422177552,1778651441000,-1161.3,0.0001465,2]
[422177634,1778651442000,-500.0,0.00014712,2]
[422177629,1778651442000,-500.0,0.00014712,2]
[422177631,1778651442000,-500.0,0.00014712,2]
[422177633,1778651442000,-500.0,0.00014712,2]
[422177628,1778651442000,-500.0,0.00014712,2]
[422177623,1778651442000,-500.0,0.00014712,2]
[422177627,1778651442000,-500.0,0.00014712,2]
[422177626,1778651442000,-500.0,0.00014712,2]
[422177624,1778651442000,-500.0,0.00014712,2]
[422177625,1778651442000,-500.0,0.00014712,2]
[422177630,1778651442000,-500.0,0.00014712,2]
[422177632,1778651442000,-500.0,0.00014712,2]
[422177636,1778651442000,-500.0,0.00014712,2]
[422177650,1778651442000,-500.0,0.00014899,2]
[422177637,1778651442000,-500.0,0.00014712,2]
[422177638,1778651442000,-500.0,0.00014712,2]
[422177639,1778651442000,-500.0,0.00014712,2]
[422177641,1778651442000,-1005.28489341,0.00014712,2]
[422177643,1778651442000,-590.11191507,0.0001479,2]
[422177646,1778651442000,-500.0,0.00014885,2]
[422177645,1778651442000,-160.0,0.000148,2]
[422177644,1778651442000,-30000.0,0.000148,5]
[422177642,1778651442000,-942.51,0.00014749,2]
[422177640,1778651442000,-500.0,0.00014712,2]
[422177648,1778651442000,-151.0,0.00014897,2]
[422177647,1778651442000,-152.0,0.00014893,2]
[422177622,1778651442000,-500.0,0.00014712,2]
[422177635,1778651442000,-500.0,0.00014712,2]
[422177621,1778651442000,-500.0,0.00014712,2]
[422177607,1778651442000,-693.86,0.00014712,2]
[422177617,1778651442000,-500.0,0.00014712,2]
[422177651,1778651442000,-500.0,0.00014899,2]
[422177592,1778651442000,-279.88525232,0.00014712,2]
[422177595,1778651442000,-514.28214689,0.00014712,2]
[422177594,1778651442000,-500.0,0.00014712,2]
[422177593,1778651442000,-500.0,0.00014712,2]
[422177597,1778651442000,-500.0,0.00014712,2]
[422177596,1778651442000,-500.0,0.00014712,2]
[422177599,1778651442000,-500.0,0.00014712,2]
[422177602,1778651442000,-500.0,0.00014712,2]
[422177598,1778651442000,-500.0,0.00014712,2]
[422177600,1778651442000,-500.0,0.00014712,2]
[422177601,1778651442000,-500.0,0.00014712,2]
[422177603,1778651442000,-693.86,0.00014712,2]
[422177608,1778651442000,-693.86,0.00014712,2]
[422177605,1778651442000,-693.86,0.00014712,2]
[422177606,1778651442000,-693.86,0.00014712,2]
[422177604,1778651442000,-693.86,0.00014712,2]
[422177610,1778651442000,-500.0,0.00014712,2]
[422177612,1778651442000,-505.4889847,0.00014712,2]
[422177611,1778651442000,-500.0,0.00014712,2]
[422177613,1778651442000,-500.0,0.00014712,2]
[422177609,1778651442000,-693.86,0.00014712,2]
[422177614,1778651442000,-500.0,0.00014712,2]
[422177615,1778651442000,-500.0,0.00014712,2]
[422177616,1778651442000,-500.0,0.00014712,2]
[422177618,1778651442000,-500.0,0.00014712,2]
[422177619,1778651442000,-500.0,0.00014712,2]
[422177620,1778651442000,-500.0,0.00014712,2]
[422177653,1778651442000,-500.0,0.00014899,2]
[422177649,1778651442000,-500.0,0.00014899,2]
[422177654,1778651442000,-500.0,0.00014899,2]
[422177687,1778651442000,-37500.0,0.000149,5]
[422177689,1778651442000,-150.12091582,0.00014988,2]
[422177688,1778651442000,-155.3,0.00014921,2]
[422177691,1778651442000,-500.0,0.00014999,2]
[422177690,1778651442000,-500.0,0.00014999,2]
[422177695,1778651442000,-693.86,0.00014999,2]
[422177696,1778651442000,-500.0,0.00014999,2]
[422177693,1778651442000,-693.86,0.00014999,2]
[422177692,1778651442000,-500.0,0.00014999,2]
[422177694,1778651442000,-693.86,0.00014999,2]
[422177698,1778651442000,-500.0,0.00014999,2]
[422177697,1778651442000,-500.0,0.00014999,2]
[422177700,1778651442000,-500.0,0.00014999,2]
[422177685,1778651442000,-500.0,0.00014899,2]
[422177701,1778651442000,-500.0,0.00014999,2]
[422177703,1778651442000,-500.0,0.00014999,2]
[422177705,1778651442000,-526.19319937,0.00014999,2]
[422177704,1778651442000,-500.0,0.00014999,2]
[422177708,1778651442000,-500.0,0.00014999,2]
[422177706,1778651442000,-500.0,0.00014999,2]
[422177707,1778651442000,-500.0,0.00014999,2]
[422177710,1778651442000,-1161.3,0.00014999,2]
[422177709,1778651442000,-1161.3,0.00014999,2]
[422177711,1778651442000,-1161.3,0.00014999,2]
[422177713,1778651442000,-500.0,0.00014999,2]
[422177714,1778651442000,-500.0,0.00014999,2]
[422177712,1778651442000,-1161.3,0.00014999,2]
[422177652,1778651442000,-500.0,0.00014899,2]
[422177702,1778651442000,-517.33252803,0.00014999,2]
[422177686,1778651442000,-500.0,0.00014899,2]
[422177699,1778651442000,-500.0,0.00014999,2]
[422177680,1778651442000,-500.0,0.00014899,2]
[422177684,1778651442000,-500.0,0.00014899,2]
[422177658,1778651442000,-693.86,0.00014899,2]
[422177655,1778651442000,-500.0,0.00014899,2]
[422177656,1778651442000,-693.86,0.00014899,2]
[422177660,1778651442000,-693.86,0.00014899,2]
[422177659,1778651442000,-693.86,0.00014899,2]
[422177661,1778651442000,-693.86,0.00014899,2]
[422177662,1778651442000,-693.86,0.00014899,2]
[422177663,1778651442000,-500.0,0.00014899,2]
[422177664,1778651442000,-500.0,0.00014899,2]
[422177666,1778651442000,-500.0,0.00014899,2]
[422177665,1778651442000,-500.0,0.00014899,2]
[422177667,1778651442000,-510.85456794,0.00014899,2]
[422177668,1778651442000,-500.0,0.00014899,2]
[422177657,1778651442000,-693.86,0.00014899,2]
[422177681,1778651442000,-500.0,0.00014899,2]
[422177669,1778651442000,-500.0,0.00014899,2]
[422177682,1778651442000,-500.0,0.00014899,2]
[422177683,1778651442000,-500.0,0.00014899,2]
[422177678,1778651442000,-500.0,0.00014899,2]
[422177676,1778651442000,-500.0,0.00014899,2]
[422177673,1778651442000,-500.0,0.00014899,2]
[422177679,1778651442000,-500.0,0.00014899,2]
[422177677,1778651442000,-500.0,0.00014899,2]
[422177674,1778651442000,-500.0,0.00014899,2]
[422177671,1778651442000,-500.0,0.00014899,2]
[422177672,1778651442000,-625.19518363,0.00014899,2]
[422177670,1778651442000,-500.0,0.00014899,2]
[422177675,1778651442000,-500.0,0.00014899,2]
[422177754,1778651443000,-150.0,0.00016122,2]
[422177762,1778651443000,-500.0,0.00016122,2]
[422177759,1778651443000,-500.0,0.00016122,2]
[422177755,1778651443000,-150.0,0.00016122,2]
[422177756,1778651443000,-150.0,0.00016122,2]
[422177757,1778651443000,-203.38924387,0.00016122,2]
[422177746,1778651443000,-2800.50485724,0.0001611,15]
[422177753,1778651443000,-522.80971154,0.00016122,2]
[422177752,1778651443000,-150.0,0.00016122,2]
[422177750,1778651443000,-281.89852311,0.00016122,2]
[422177747,1778651443000,-9999.99,0.00016116,2]
[422177761,1778651443000,-500.0,0.00016122,2]
[422177748,1778651443000,-150.0,0.00016122,2]
[422177751,1778651443000,-500.0,0.00016122,2]
[422177758,1778651443000,-500.0,0.00016122,2]
[422177767,1778651443000,-500.0,0.00016122,2]
[422177764,1778651443000,-500.0,0.00016122,2]
[422177763,1778651443000,-500.0,0.00016122,2]
[422177765,1778651443000,-500.0,0.00016122,2]
[422177768,1778651443000,-500.0,0.00016122,2]
[422177769,1778651443000,-500.0,0.00016122,2]
[422177771,1778651443000,-500.0,0.00016122,2]
[422177770,1778651443000,-500.0,0.00016122,2]
[422177773,1778651443000,-500.0,0.00016122,2]
[422177772,1778651443000,-537.28262258,0.00016122,2]
[422177775,1778651443000,-500.0,0.00016122,2]
[422177774,1778651443000,-500.0,0.00016122,2]
[422177776,1778651443000,-150.0,0.00016122,2]
[422177777,1778651443000,-257.47855207,0.00016122,2]
[422177760,1778651443000,-500.0,0.00016122,2]
[422177749,1778651443000,-150.0,0.00016122,2]
[422177716,1778651443000,-500.0,0.00014999,2]
[422177742,1778651443000,-471.63845431,0.00016,2]
[422177780,1778651443000,-150.0,0.00016122,2]
[422177715,1778651443000,-500.0,0.00014999,2]
[422177717,1778651443000,-600.34758396,0.00014999,2]
[422177718,1778651443000,-655031.48401734,0.00015,2]
[422177719,1778651443000,-427.6893788,0.00015,2]
[422177720,1778651443000,-104126.00759942,0.00015,7]
[422177721,1778651443000,-900.0,0.00015068,2]
[422177723,1778651443000,-500.0,0.00015159,2]
[422177722,1778651443000,-942.51,0.00015092,2]
[422177724,1778651443000,-1356.0,0.000152,2]
[422177725,1778651443000,-165.77,0.000152,2]
[422177726,1778651443000,-166.94,0.00015296,2]
[422177728,1778651443000,-171.69,0.00015326,2]
[422177727,1778651443000,-1517.64,0.000153,2]
[422177729,1778651443000,-500.0,0.00015433,2]
[422177731,1778651443000,-2000.0,0.00015636,2]
[422177730,1778651443000,-1236.76071067,0.000155,2]
[422177733,1778651443000,-150.0,0.00015672,2]
[422177732,1778651443000,-255.0,0.0001567,2]
[422177735,1778651443000,-500.0,0.00015707,2]
[422177737,1778651443000,-2269.21898435,0.00015807,2]
[422177738,1778651443000,-150.0,0.000159,2]
[422177736,1778651443000,-1680.0,0.00015742,2]
[422177734,1778651443000,-420.0,0.00015674,2]
[422177740,1778651443000,-8983.23305263,0.00015989,2]
[422177741,1778651443000,-300.0,0.00016,2]
[422177739,1778651443000,-500.0,0.00015981,2]
[422177744,1778651443000,-171.69,0.00016092,2]
[422177743,1778651443000,-166.94,0.00016054,2]
[422177745,1778651443000,-471.63845431,0.000161,2]
[422177782,1778651443000,-471.63845431,0.000162,2]
[422177843,1778651443000,-151.0,0.00017756,2]
[422177779,1778651443000,-150.0,0.00016122,2]
[422177815,1778651443000,-2351.0,0.00017316,2]
[422177816,1778651443000,-2000.0,0.00017374,2]
[422177818,1778651443000,-171.69,0.00017625,2]
[422177817,1778651443000,-272.781575,0.00017542,2]
[422177820,1778651443000,-543.30632646,0.00017709,2]
[422177819,1778651443000,-165.77,0.00017709,2]
[422177822,1778651443000,-151.0,0.00017756,2]
[422177821,1778651443000,-207.32822116,0.00017756,2]
[422177825,1778651443000,-151.0,0.00017756,2]
[422177824,1778651443000,-151.0,0.00017756,2]
[422177823,1778651443000,-151.0,0.00017756,2]
[422177826,1778651443000,-151.0,0.00017756,2]
[422177827,1778651443000,-151.0,0.00017756,2]
[422177828,1778651443000,-1865.36488657,0.00017756,2]
[422177829,1778651443000,-151.0,0.00017756,2]
[422177831,1778651443000,-151.0,0.00017756,2]
[422177830,1778651443000,-151.0,0.00017756,2]
[422177833,1778651443000,-151.0,0.00017756,2]
[422177832,1778651443000,-151.0,0.00017756,2]
[422177834,1778651443000,-151.0,0.00017756,2]
[422177835,1778651443000,-151.0,0.00017756,2]
[422177838,1778651443000,-236.80407423,0.00017756,2]
[422177836,1778651443000,-151.0,0.00017756,2]
[422177839,1778651443000,-151.0,0.00017756,2]
[422177837,1778651443000,-151.0,0.00017756,2]
[422177841,1778651443000,-151.0,0.00017756,2]
[422177781,1778651443000,-176.14403386,0.00016122,2]
[422177844,1778651443000,-151.0,0.00017756,2]
[422177842,1778651443000,-151.0,0.00017756,2]
[422177813,1778651443000,-433.0,0.00016878,2]
[422177814,1778651443000,-587.0,0.00017166,2]
[422177840,1778651443000,-151.0,0.00017756,2]
[422177812,1778651443000,-171.69,0.00016858,2]
[422177784,1778651443000,-10209.89761411,0.0001627,2]
[422177778,1778651443000,-150.0,0.00016122,2]
[422177783,1778651443000,-500.0,0.00016255,2]
[422177786,1778651443000,-176.3,0.00016344,2]
[422177785,1778651443000,-200.0,0.0001634,2]
[422177787,1778651443000,-367.77821944,0.00016438,2]
[422177788,1778651443000,-229.84,0.00016438,2]
[422177789,1778651443000,-900.0,0.00016438,2]
[422177810,1778651443000,-1577.28095997,0.00016828,2]
[422177792,1778651443000,-3273.043782,0.00016438,2]
[422177791,1778651443000,-3273.043782,0.00016438,2]
[422177793,1778651443000,-3273.043782,0.00016438,2]
[422177794,1778651443000,-587.860234,0.00016438,2]
[422177795,1778651443000,-587.860234,0.00016438,2]
[422177790,1778651443000,-3273.043782,0.00016438,2]
[422177797,1778651443000,-587.860234,0.00016438,2]
[422177809,1778651443000,-1539.0,0.00016828,2]
[422177796,1778651443000,-587.860234,0.00016438,2]
[422177808,1778651443000,-1539.0,0.00016828,2]
[422177807,1778651443000,-541.24100416,0.00016803,2]
[422177805,1778651443000,-194.46,0.00016712,2]
[422177806,1778651443000,-212.31192935,0.00016774,2]
[422177811,1778651443000,-153.91819496,0.00016828,2]
[422177803,1778651443000,-500.0,0.00016529,2]
[422177801,1778651443000,-2165.91072173,0.000165,2]
[422177804,1778651443000,-1002.63,0.000166,2]
[422177799,1778651443000,-4074.12,0.00016474,2]
[422177800,1778651443000,-1478.25,0.00016474,2]
[422177802,1778651443000,-500.0,0.000165,2]
[422177798,1778651443000,-165.77,0.00016455,2]
[422177923,1778651444000,-500.0,0.00019178,2]
[422177932,1778651444000,-500.0,0.00019178,2]
[422177920,1778651444000,-3000.0,0.00019178,2]
[422177914,1778651444000,-171.69,0.00019157,2]
[422177913,1778651444000,-2000.0,0.00019111,2]
[422177917,1778651444000,-623.0,0.00019178,2]
[422177910,1778651444000,-162.64,0.0001911,2]
[422177900,1778651444000,-393.47665623,0.00019,2]
[422177904,1778651444000,-1002.63,0.00019,2]
[422177894,1778651444000,-693.86,0.00018999,2]
[422177908,1778651444000,-3292.0,0.00019048,2]
[422177925,1778651444000,-500.0,0.00019178,2]
[422177944,1778651444000,-500.0,0.00019178,2]
[422177931,1778651444000,-500.0,0.00019178,2]
[422177930,1778651444000,-500.0,0.00019178,2]
[422177928,1778651444000,-500.0,0.00019178,2]
[422177935,1778651444000,-500.0,0.00019178,2]
[422177933,1778651444000,-500.0,0.00019178,2]
[422177936,1778651444000,-500.0,0.00019178,2]
[422177934,1778651444000,-500.0,0.00019178,2]
[422177937,1778651444000,-500.0,0.00019178,2]
[422177938,1778651444000,-500.0,0.00019178,2]
[422177939,1778651444000,-500.0,0.00019178,2]
[422177941,1778651444000,-500.0,0.00019178,2]
[422177905,1778651444000,-363.77073856,0.0001901,7]
[422177929,1778651444000,-500.0,0.00019178,2]
[422177902,1778651444000,-345.90912459,0.00019,2]
[422177867,1778651444000,-165.08249546,0.000182,2]
[422177898,1778651444000,-4190.0,0.00019,2]
[422177940,1778651444000,-500.0,0.00019178,2]
[422177845,1778651444000,-1237.52753037,0.0001789,2]
[422177847,1778651444000,-28185.31630073,0.000179,2]
[422177846,1778651444000,-28185.31630073,0.000179,2]
[422177848,1778651444000,-28185.31630073,0.000179,2]
[422177850,1778651444000,-176.3,0.00017978,2]
[422177851,1778651444000,-187.37,0.00017999,2]
[422177853,1778651444000,-1205.78662741,0.00018,2]
[422177849,1778651444000,-28185.31630073,0.000179,2]
[422177855,1778651444000,-1044.25976013,0.00018,2]
[422177858,1778651444000,-350.0,0.00018,2]
[422177860,1778651444000,-169.28,0.00018162,2]
[422177857,1778651444000,-165.08249546,0.00018,2]
[422177865,1778651444000,-736.0,0.00018173,2]
[422177863,1778651444000,-169.28,0.00018162,2]
[422177878,1778651444000,-750.0,0.00018581,2]
[422177873,1778651444000,-165.08249546,0.000184,2]
[422177871,1778651444000,-171.69,0.00018391,2]
[422177869,1778651444000,-1934.38338737,0.00018304,2]
[422177875,1778651444000,-156.48177233,0.00018506,2]
[422177882,1778651444000,-150.0,0.00018652,2]
[422177880,1778651444000,-150.0,0.00018581,30]
[422177884,1778651444000,-317.18,0.0001872,2]
[422177886,1778651444000,-152.09,0.0001872,2]
[422177890,1778651444000,-2005.9555727,0.00018852,2]
[422177888,1778651444000,-823.0,0.000188,2]
[422177892,1778651444000,-1644.56942084,0.00018967,2]
[422177896,1778651444000,-500.0,0.00018999,2]
[422177945,1778651444000,-2039.84,0.00019178,2]
[422177953,1778651444000,-262.18,0.00019812,2]
[422177943,1778651444000,-500.0,0.00019178,2]
[422177980,1778651444000,-156.0,0.0002,2]
[422177978,1778651444000,-522.0,0.0002,10]
[422177979,1778651444000,-156.0,0.0002,2]
[422177981,1778651444000,-367.0,0.0002,2]
[422177985,1778651444000,-174.0,0.0002,2]
[422177983,1778651444000,-156.0,0.0002,2]
[422177986,1778651444000,-3143.0,0.0002,2]
[422177982,1778651444000,-1388.0,0.0002,2]
[422177987,1778651444000,-854.0,0.0002,2]
[422177984,1778651444000,-307.0,0.0002,2]
[422177988,1778651444000,-12030.76,0.0002,2]
[422177989,1778651444000,-763.82,0.000201,2]
[422177977,1778651444000,-1000.0,0.0002,10]
[422177991,1778651444000,-500.0,0.00020293,2]
[422177990,1778651444000,-414.93,0.000201,2]
[422177992,1778651444000,-500.0,0.00020293,2]
[422177999,1778651444000,-500.0,0.00020293,2]
[422177996,1778651444000,-500.0,0.00020293,2]
[422177995,1778651444000,-500.0,0.00020293,2]
[422178000,1778651444000,-500.0,0.00020293,2]
[422177994,1778651444000,-500.0,0.00020293,2]
[422177997,1778651444000,-500.0,0.00020293,2]
[422177998,1778651444000,-500.0,0.00020293,2]
[422178001,1778651444000,-500.0,0.00020293,2]
[422178003,1778651444000,-500.0,0.00020293,2]
[422177942,1778651444000,-500.0,0.00019178,2]
[422177993,1778651444000,-500.0,0.00020293,2]
[422177976,1778651444000,-1000.0,0.0002,10]
[422178002,1778651444000,-500.0,0.00020293,2]
[422177974,1778651444000,-1000.0,0.0002,10]
[422177946,1778651444000,-2080.17592889,0.000194,2]
[422177950,1778651444000,-150.16298061,0.000196,2]
[422177949,1778651444000,-150.0,0.000196,2]
[422177947,1778651444000,-1106.17266018,0.0001943,5]
[422177948,1778651444000,-1252.0,0.0001957,2]
[422177951,1778651444000,-176.3,0.00019612,2]
[422177952,1778651444000,-150.0,0.00019699,2]
[422177973,1778651444000,-1000.0,0.0002,10]
[422177954,1778651444000,-955.12368829,0.000199,2]
[422177955,1778651444000,-955.1236883,0.000199,2]
[422177956,1778651444000,-955.1236883,0.000199,2]
[422177958,1778651444000,-171.69,0.00019924,2]
[422177959,1778651444000,-2157.14243826,0.00019948,2]
[422177957,1778651444000,-955.1236883,0.000199,2]
[422177961,1778651444000,-1161.3,0.00019999,2]
[422177975,1778651444000,-1000.0,0.0002,10]
[422177962,1778651444000,-500.0,0.00019999,2]
[422177970,1778651444000,-1000.0,0.0002,10]
[422177972,1778651444000,-1000.0,0.0002,10]
[422177969,1778651444000,-1000.0,0.0002,10]
[422177965,1778651444000,-200.0,0.0002,2]
[422177971,1778651444000,-1000.0,0.0002,10]
[422177967,1778651444000,-3907.672545,0.0002,2]
[422177968,1778651444000,-400.0,0.0002,2]
[422177964,1778651444000,-2412.0,0.0002,2]
[422177963,1778651444000,-341.72681849,0.00019999,2]
[422177960,1778651444000,-500.0,0.00019999,2]
[422177966,1778651444000,-13080.79766381,0.0002,2]
[422178040,1778651445000,-500.0,0.00020293,2]
[422178042,1778651445000,-500.0,0.00020293,2]
[422178046,1778651445000,-500.0,0.00020293,2]
[422178043,1778651445000,-500.0,0.00020293,2]
[422178038,1778651445000,-500.0,0.00020293,2]
[422178029,1778651445000,-500.0,0.00020293,2]
[422178037,1778651445000,-500.0,0.00020293,2]
[422178036,1778651445000,-500.0,0.00020293,2]
[422178035,1778651445000,-500.0,0.00020293,2]
[422178033,1778651445000,-500.0,0.00020293,2]
[422178039,1778651445000,-500.0,0.00020293,2]
[422178045,1778651445000,-500.0,0.00020293,2]
[422178057,1778651445000,-570.4396422,0.0002041,30]
[422178041,1778651445000,-500.0,0.00020293,2]
[422178047,1778651445000,-500.0,0.00020293,2]
[422178050,1778651445000,-500.0,0.00020293,2]
[422178048,1778651445000,-500.0,0.00020293,2]
[422178049,1778651445000,-500.0,0.00020293,2]
[422178051,1778651445000,-500.0,0.00020293,2]
[422178055,1778651445000,-500.0,0.00020301,2]
[422178053,1778651445000,-500.0,0.00020293,2]
[422178054,1778651445000,-435.72337462,0.00020293,2]
[422178056,1778651445000,-181.13544215,0.00020408,8]
[422178058,1778651445000,-2236.95670848,0.00020496,2]
[422178031,1778651445000,-500.0,0.00020293,2]
[422178044,1778651445000,-500.0,0.00020293,2]
[422178032,1778651445000,-500.0,0.00020293,2]
[422178017,1778651445000,-500.0,0.00020293,2]
[422178030,1778651445000,-500.0,0.00020293,2]
[422178052,1778651445000,-500.0,0.00020293,2]
[422178004,1778651445000,-500.0,0.00020293,2]
[422178005,1778651445000,-500.0,0.00020293,2]
[422178007,1778651445000,-500.0,0.00020293,2]
[422178009,1778651445000,-500.0,0.00020293,2]
[422178008,1778651445000,-500.0,0.00020293,2]
[422178010,1778651445000,-500.0,0.00020293,2]
[422178006,1778651445000,-500.0,0.00020293,2]
[422178011,1778651445000,-500.0,0.00020293,2]
[422178015,1778651445000,-500.0,0.00020293,2]
[422178014,1778651445000,-500.0,0.00020293,2]
[422178012,1778651445000,-500.0,0.00020293,2]
[422178013,1778651445000,-500.0,0.00020293,2]
[422178016,1778651445000,-500.0,0.00020293,2]
[422178018,1778651445000,-500.0,0.00020293,2]
[422178021,1778651445000,-500.0,0.00020293,2]
[422178022,1778651445000,-500.0,0.00020293,2]
[422178019,1778651445000,-500.0,0.00020293,2]
[422178020,1778651445000,-500.0,0.00020293,2]
[422178023,1778651445000,-500.0,0.00020293,2]
[422178027,1778651445000,-500.0,0.00020293,2]
[422178025,1778651445000,-500.0,0.00020293,2]
[422178024,1778651445000,-500.0,0.00020293,2]
[422178026,1778651445000,-500.0,0.00020293,2]
[422178034,1778651445000,-500.0,0.00020293,2]
[422178028,1778651445000,-500.0,0.00020293,2]
[422178059,1778651445000,-198.29196181,0.000205,13]
[422178062,1778651445000,-4386.05,0.00020548,2]
[422178104,1778651445000,-450.0,0.00022,2]
[422178092,1778651445000,-151.0,0.00021496,2]
[422178094,1778651445000,-153.09178026,0.00021501,16]
[422178097,1778651445000,-3073.27,0.00021918,2]
[422178093,1778651445000,-151.16043103,0.00021501,16]
[422178096,1778651445000,-2405.55389864,0.00021592,2]
[422178098,1778651445000,-1003.84,0.00021918,2]
[422178099,1778651445000,-5000.0,0.00021918,2]
[422178101,1778651445000,-12030.76,0.00021932,2]
[422178103,1778651445000,-300.0,0.00022,2]
[422178100,1778651445000,-259.361985,0.00021918,2]
[422178102,1778651445000,-160.0,0.00022,2]
[422178105,1778651445000,-367.0,0.00022,2]
[422178106,1778651445000,-1388.0,0.00022,2]
[422178109,1778651445000,-243.5200928,0.0002211,2]
[422178108,1778651445000,-174.0,0.00022,2]
[422178107,1778651445000,-307.0,0.00022,2]
[422178113,1778651445000,-640.07087222,0.00022407,2]
[422178112,1778651445000,-640.07087222,0.00022407,2]
[422178111,1778651445000,-640.07087224,0.00022407,2]
[422178110,1778651445000,-2494.55939289,0.0002214,2]
[422178115,1778651445000,-187.37,0.00022437,2]
[422178114,1778651445000,-178.89,0.00022432,2]
[422178117,1778651445000,-2162.76,0.00022466,2]
[422178061,1778651445000,-4386.05,0.00020548,2]
[422178116,1778651445000,-2155.73,0.00022466,2]
[422178090,1778651445000,-444.07403731,0.00021328,15]
[422178091,1778651445000,-6459.97,0.0002137,2]
[422178095,1778651445000,-153.58976685,0.00021501,16]
[422178089,1778651445000,-500.0,0.00021233,2]
[422178060,1778651445000,-317.84348385,0.000205,13]
[422178063,1778651445000,-4386.05,0.00020548,2]